bitfinex/quotes_SOLUSD_20240809
["timestamp","ask_amount","ask_price","bid_price","bid_amount"]
[1723208457313,61.13099,155.26,155.23,0.8038863]
[1723208457514,1.73624161,155.25,155.23,0.8038863]
[1723208457821,0.12549,155.25,155.23,0.8038863]
[1723208458024,57.65180191,155.25,155.23,0.8038863]
[1723208458201,45.12549,155.24,155.23,0.8038863]
[1723208458520,45.37647,155.24,155.23,0.8038863]
[1723208459133,65.37647,155.24,155.23,0.8038863]
[1723208459623,20.25098,155.24,155.23,0.8038863]
[1723208459792,20.12549,155.24,155.23,0.8038863]
[1723208460392,16.0055,155.26,155.23,0.8038863]
[1723208460620,6.5471,155.28,155.23,0.8038863]
[1723208461402,15.744,155.3,155.23,0.8038863]
[1723208462206,1.61017563,155.29,155.23,0.8038863]
[1723208462698,35.79,155.29,155.23,0.8038863]
[1723208463219,15.744,155.3,155.23,0.8038863]
[1723208463524,6.2317,155.32,155.24,35.79]
[1723208463727,15.1916,155.35,155.25,1.28805345]
[1723208463933,260.32124517,155.36,155.26,35.79]
[1723208463934,273.40163901,155.36,155.26,35.79]
[1723208464100,273.12314517,155.36,155.26,35.79]
[1723208464302,266.68654517,155.36,155.27,1.28784181]
[1723208464733,266.68654517,155.36,155.26,35.79]
[1723208465723,7.48654517,155.36,155.26,35.79]
[1723208466036,50.9816,155.39,155.28,35.79]
[1723208466531,50.9816,155.39,155.3,35.79]
[1723208466706,35.79,155.39,155.3,37.07747092]
[1723208466907,6.0324,155.4,155.31,1.28747911]
[1723208467102,6.0324,155.4,155.32,35.79]
[1723208467329,58.348,155.43,155.33,1.28730688]
[1723208467519,265.4494,155.44,155.33,1.28730688]
[1723208467520,6.2494,155.44,155.34,35.79]
[1723208467703,6.2494,155.44,155.36,35.79]
[1723208467919,35.79,155.45,155.36,35.79]
[1723208468121,1.60866097,155.44,155.3,16.114]
[1723208468323,6.4346,155.41,155.31,35.79]
[1723208468729,1.60922478,155.4,155.31,35.79]
[1723208468916,37.39922478,155.4,155.31,35.79]
[1723208469120,0.12549,155.39,155.3,16.114]
[1723208469536,45.37647,155.39,155.3,16.114]
[1723208469836,1.60936473,155.38,155.3,16.114]
[1723208470008,45.37647,155.39,155.3,16.114]
[1723208470217,0.12549,155.39,155.3,16.114]
[1723208470430,0.12549,155.39,155.31,35.79]
[1723208470731,6.4342,155.42,155.31,35.79]
[1723208470732,35.79,155.42,155.31,35.79]
[1723208470918,0.37647,155.41,155.31,35.79]
[1723208471120,65.37647,155.41,155.31,35.79]
[1723208471429,1.60912627,155.4,155.31,35.79]
[1723208471617,0.25098,155.39,155.31,35.79]
[1723208471811,20.0,155.41,155.33,35.79]
[1723208472018,36.91063439,155.44,155.33,35.79]
[1723208472216,1.12063439,155.44,155.35,35.79]
[1723208472416,42.0394,155.48,155.39,35.79]
[1723208472616,6.2494,155.48,155.39,35.79]
[1723208472843,1.1201518,155.49,155.39,35.79]
[1723208473133,48.4799,155.52,155.41,35.79]
[1723208473452,8.03890633,155.51,155.41,35.79]
[1723208473745,42.0498,155.52,155.41,35.79]
[1723208474042,42.2217,155.48,155.39,15.6172]
[1723208474337,1.60854778,155.47,155.39,15.6172]
[1723208474635,35.79,155.48,155.39,15.6172]
[1723208474831,0.12549,155.47,155.39,51.4072]
[1723208475009,0.12549,155.49,155.39,51.4072]
[1723208475211,21.60833906,155.49,155.39,51.4072]
[1723208475473,35.79,155.46,155.39,15.6172]
[1723208475614,1.6086564,155.45,155.39,15.6172]
[1723208475929,1.6086564,155.45,155.29,8.15372615]
[1723208475930,35.79,155.44,155.35,21.1943]
[1723208476132,35.79,155.42,155.35,21.1943]
[1723208476432,1.60898125,155.41,155.35,21.1943]
[1723208476635,35.79,155.4,155.31,35.79]
[1723208476812,1.60917997,155.39,155.31,35.79]
[1723208477910,35.91549,155.4,155.31,35.79]
[1723208478321,0.12549,155.4,155.31,35.79]
[1723208478829,20.0,155.41,155.31,35.79]
[1723208479139,20.0,155.41,155.33,35.79]
[1723208479347,1.60891593,155.42,155.33,35.79]
[1723208479553,0.25098,155.41,155.33,35.79]
[1723208480043,55.79,155.42,155.33,35.79]
[1723208480255,20.0,155.42,155.33,35.79]
[1723208480628,35.79,155.4,155.29,50.8725]
[1723208480828,35.79,155.38,155.29,50.8725]
[1723208481243,35.79,155.4,155.29,50.8725]
[1723208481427,65.0,155.39,155.29,50.8725]
[1723208481635,0.12549,155.38,155.29,50.8725]
[1723208481843,0.37647,155.38,155.29,50.8725]
[1723208482541,36.16647,155.38,155.29,15.0825]
[1723208484248,65.0,155.37,155.29,15.0825]
[1723208484541,36.16647,155.36,155.29,15.0825]
[1723208484749,36.16647,155.36,155.25,35.79]
[1723208484750,66.60977437,155.35,155.25,35.79]
[1723208484926,35.91549,155.34,155.24,22.1353]
[1723208485129,1.73541077,155.33,155.24,22.1353]
[1723208485350,1.6099644,155.32,155.24,22.1353]
[1723208486735,20.0,155.33,155.25,35.79]
[1723208486944,0.12549,155.34,155.25,35.79]
[1723208486945,21.73528502,155.34,155.25,35.79]
[1723208487131,20.12549,155.34,155.25,35.79]
[1723208487335,20.0,155.35,155.27,35.79]
[1723208487545,20.0,155.37,155.27,35.79]
[1723208487937,1.60965523,155.36,155.27,35.79]
[1723208488253,35.79,155.4,155.31,35.79]
[1723208488841,37.39929169,155.4,155.31,35.79]
[1723208489244,1.60929169,155.4,155.31,35.79]
[1723208489442,35.79,155.42,155.31,35.79]
[1723208489642,45.0,155.41,155.31,35.79]
[1723208489839,6.6058,155.43,155.35,35.79]
[1723208490049,35.79,155.46,155.35,35.79]
[1723208490233,265.6332,155.45,155.35,35.79]
[1723208490491,6.4334,155.44,155.35,35.79]
[1723208490953,6.4334,155.44,155.33,42.2074]
[1723208490954,1.60888649,155.43,155.33,42.2074]
[1723208491359,21.60888649,155.43,155.33,42.2074]
[1723208491548,45.25098,155.42,155.33,42.2074]
[1723208491751,45.37647,155.42,155.33,42.2074]
[1723208491942,6.4353,155.4,155.33,6.4174]
[1723208492261,6.4346,155.41,155.33,6.4174]
[1723208492454,6.4351,155.4,155.33,6.4174]
[1723208492656,0.12549,155.39,155.32,16.5669]
[1723208492846,1.73476192,155.39,155.32,16.5669]
[1723208493242,0.12549,155.38,155.29,35.79]
[1723208493558,35.79,155.36,155.28,16.1062]
[1723208493749,21.86070954,155.35,155.28,16.1062]
[1723208494662,20.12549,155.35,155.28,16.1062]
[1723208494966,20.0,155.35,155.28,16.1062]
[1723208495338,20.0,155.37,155.29,35.79]
[1723208495539,45.0,155.39,155.29,35.79]
[1723208495540,21.60936442,155.38,155.29,35.79]
[1723208495759,57.39936442,155.38,155.29,35.79]
[1723208495969,55.79,155.38,155.29,35.79]
[1723208497437,20.0,155.38,155.29,35.79]
[1723208497947,20.0,155.39,155.31,35.79]
[1723208498353,20.0,155.39,155.3,45.0]
[1723208498866,20.0,155.39,155.29,35.79]
[1723208499043,28.04517058,155.39,155.29,35.79]
[1723208499238,45.25098,155.38,155.29,35.79]
[1723208500355,20.0,155.39,155.31,35.79]
[1723208501376,26.4346,155.41,155.31,35.79]
[1723208501565,1.86018243,155.4,155.31,35.79]
[1723208501856,37.65018243,155.4,155.31,35.79]
[1723208502069,20.12549,155.39,155.31,35.79]
[1723208502237,20.12549,155.39,155.29,35.79]
[1723208502238,0.12549,155.38,155.29,35.79]
[1723208502639,1.60935611,155.38,155.26,15.7227]
[1723208502847,0.12549,155.37,155.26,51.5127]
[1723208503035,46.98615715,155.37,155.26,51.5127]
[1723208503670,53.42245715,155.37,155.26,51.5127]
[1723208503845,46.98615715,155.37,155.26,51.5127]
[1723208505963,35.79,155.36,155.26,51.5127]
[1723208506160,6.4383,155.32,155.24,6.4535]
[1723208506462,1.86108655,155.31,155.23,0.8038863]
[1723208506676,46.86108655,155.31,155.23,0.8038863]
[1723208506970,35.79,155.28,155.23,0.8038863]
[1723208507134,1.86157462,155.27,155.23,0.8038863]
[1723208507462,20.12549,155.27,155.23,0.8038863]
[1723208509158,0.12549,155.28,155.23,0.8038863]
[1723208509341,0.25098,155.28,155.23,0.8038863]
[1723208509551,45.25098,155.28,155.23,0.8038863]
[1723208509742,0.12549,155.28,155.23,0.8038863]
[1723208509957,35.79,155.26,155.23,0.8038863]
[1723208510153,0.12549,155.25,155.23,0.8038863]
[1723208510444,1.73622521,155.25,155.23,0.8038863]
[1723208510645,0.12549,155.24,155.23,0.8038863]
[1723208511148,71.79578,155.25,155.23,0.8038863]
[1723208511359,0.12549,155.24,155.23,0.8038863]
[1723208511566,6.67029,155.25,155.23,0.8038863]
[1723208511752,6.5448,155.25,155.23,0.8038863]
[1723208512571,35.79,155.26,155.23,0.8038863]
[1723208513470,0.25098,155.27,155.23,0.8038863]
[1723208513644,35.79,155.24,155.23,0.8038863]
[1723208513849,45.37647,155.24,155.23,0.8038863]
[1723208514053,0.12549,155.24,155.23,0.8038863]
[1723208514261,1.61082229,155.24,155.23,0.8038863]
[1723208514669,0.37647,155.24,155.23,0.8038863]
[1723208515274,42.60807,155.24,155.23,0.8038863]
[1723208515447,6.3447,155.21,155.1,22.26379091]
[1723208515648,42.2337,155.19,155.1,15.5401]
[1723208515872,46.86252725,155.18,155.1,15.5401]
[1723208516070,51.69508,155.18,155.08,0.8038863]
[1723208516290,55.91549,155.17,155.08,0.8038863]
[1723208516454,45.12549,155.16,155.08,0.8038863]
[1723208516650,20.12549,155.15,155.08,0.8038863]
[1723208516957,45.25098,155.14,155.08,0.8038863]
[1723208517165,0.25098,155.14,155.08,0.8038863]
[1723208517690,35.91549,155.13,155.08,0.8038863]
[1723208517972,1.61222029,155.12,155.08,0.8038863]
[1723208518273,20.0,155.12,155.08,0.8038863]
[1723208518772,1.73761856,155.11,155.08,0.8038863]
[1723208518971,20.0,155.12,155.08,0.8038863]
[1723208519179,35.79,155.17,155.08,0.8038863]
[1723208519363,45.25098,155.16,155.08,0.8038863]
[1723208519563,20.0,155.15,155.08,0.8038863]
[1723208519751,0.12549,155.14,155.08,0.8038863]
[1723208519952,20.0,155.15,155.08,0.8038863]
[1723208520158,35.79,155.19,155.09,35.79]
[1723208520351,0.12549,155.18,155.09,35.79]
[1723208520749,35.79,155.19,155.09,35.79]
[1723208520949,16.1022,155.26,155.11,35.79]
[1723208520950,42.1347,155.21,155.11,35.79]
[1723208521182,35.79,155.23,155.12,16.575]
[1723208521676,42.2329,155.21,155.12,16.575]
[1723208521880,35.79,155.21,155.12,16.575]
[1723208522175,1.6112189,155.2,155.12,16.575]
[1723208522558,21.6112189,155.2,155.12,16.575]
[1723208522761,45.25098,155.19,155.12,16.575]
[1723208523984,1.61139233,155.18,155.09,6.3601]
[1723208524283,42.2355,155.15,155.08,0.8038863]
[1723208524476,35.79,155.13,155.08,0.8038863]
[1723208524651,0.12549,155.12,155.08,0.8038863]
[1723208525079,1.61194795,155.12,155.08,0.8038863]
[1723208525666,35.91549,155.13,155.08,0.8038863]
[1723208525983,0.12549,155.12,155.08,0.8038863]
[1723208526180,0.12549,155.13,155.08,0.8038863]
[1723208526358,20.0,155.14,155.08,0.8038863]
[1723208529458,64.3545,155.17,155.08,0.8038863]
[1723208529459,20.0,155.16,155.08,0.8038863]
[1723208529657,0.25098,155.15,155.08,0.8038863]
[1723208529867,1.86275769,155.15,155.08,0.8038863]
[1723208530075,46.86275769,155.15,155.08,0.8038863]
[1723208530261,0.12549,155.17,155.09,35.79]
[1723208530500,45.37647,155.18,155.09,35.79]
[1723208530662,37.40156065,155.17,155.08,0.8038863]
[1723208530863,45.37647,155.16,155.08,0.8038863]
[1723208531071,51.82167,155.16,155.08,0.8038863]
[1723208531672,6.4459,155.14,155.08,0.8038863]
[1723208531882,0.12549,155.13,155.08,0.8038863]
[1723208532066,55.79,155.15,155.08,0.8038863]
[1723208532067,0.12549,155.14,155.08,0.8038863]
[1723208532275,20.0,155.15,155.08,0.8038863]
[1723208532571,45.0,155.16,155.08,0.8038863]
[1723208532887,35.79,155.19,155.09,35.79]
[1723208533193,42.2337,155.19,155.09,35.79]
[1723208533401,1.61160945,155.18,155.09,35.79]
[1723208533687,35.79,155.17,155.08,0.8038863]
[1723208534074,45.37647,155.16,155.08,0.8038863]
[1723208534268,51.82147,155.16,155.08,0.8038863]
[1723208534585,43.84757805,155.15,155.08,0.8038863]
[1723208534774,65.37647,155.14,155.08,0.8038863]
[1723208535290,71.82227,155.14,155.08,0.8038863]
[1723208535521,65.37647,155.14,155.08,0.8038863]
[1723208535696,20.12549,155.14,155.08,0.8038863]
[1723208536070,0.12549,155.14,155.08,0.8038863]
[1723208536269,45.37647,155.15,155.08,0.8038863]
[1723208536684,20.0,155.14,155.08,0.8038863]
[1723208536987,45.37647,155.13,155.08,0.8038863]
[1723208537165,21.61206916,155.12,155.08,0.8038863]
[1723208537372,45.37647,155.11,155.08,0.8038863]
[1723208537568,20.0,155.1,155.08,0.8038863]
[1723208537764,21.61219534,155.1,155.08,0.8038863]
[1723208538191,0.12549,155.09,155.08,0.8038863]
[1723208538702,20.0,155.1,155.08,0.8038863]
[1723208539777,0.12549,155.11,155.08,0.8038863]
[1723208540172,0.12549,155.1,155.08,0.8038863]
[1723208540372,0.25098,155.1,155.08,0.8038863]
[1723208540580,20.25098,155.1,155.08,0.8038863]
[1723208540788,21.86334967,155.1,155.08,0.8038863]
[1723208540995,20.25098,155.1,155.08,0.8038863]
[1723208541196,20.0,155.1,155.08,0.8038863]
[1723208541404,42.2355,155.15,155.08,0.8038863]
[1723208541574,35.79,155.13,155.08,0.8038863]
[1723208541909,42.2371,155.11,155.08,0.8038863]
[1723208542077,20.0,155.12,155.08,0.8038863]
[1723208542694,45.25098,155.11,155.08,0.8038863]
[1723208542892,20.0,155.1,155.08,0.8038863]
[1723208543679,0.12549,155.09,155.08,0.8038863]
[1723208543874,87.61427,155.09,155.08,0.8038863]
[1723208544094,65.25098,155.09,155.08,0.8038863]
[1723208544373,20.12549,155.09,155.08,0.8038863]
[1723208544588,20.0,155.09,155.08,0.8038863]
[1723208544871,20.12549,155.09,155.08,0.8038863]
[1723208545305,71.57329,155.09,155.08,0.8038863]
[1723208545477,107.48878,155.09,155.08,0.8038863]
[1723208545897,101.16647,155.09,155.08,0.8038863]
[1723208546105,65.37647,155.09,155.08,0.8038863]
[1723208546412,66.98891186,155.09,155.08,0.8038863]
[1723208546694,65.37647,155.09,155.08,0.8038863]
[1723208546871,42.2363,155.13,155.08,0.8038863]
[1723208548291,20.0,155.12,155.08,0.8038863]
[1723208548492,1.12283168,155.14,155.08,0.8038863]
[1723208548681,35.79,155.15,155.08,0.8038863]
[1723208549786,20.0,155.14,155.08,0.8038863]
[1723208549987,57.8021,155.17,155.08,0.8038863]
[1723208550171,35.79,155.17,155.08,2.09331351]
[1723208550595,35.79,155.17,155.08,0.8038863]
[1723208550778,1.12247213,155.18,155.09,35.79]
[1723208551103,52.25781067,155.21,155.11,35.79]
[1723208551406,6.4439,155.19,155.09,35.79]
[1723208551782,6.4433,155.2,155.09,35.79]
[1723208552379,6.4433,155.2,155.08,0.8038863]
[1723208552380,45.89061067,155.21,155.11,41.8796]
[1723208552699,6.4419,155.24,155.13,35.79]
[1723208552905,41.9048,155.25,155.11,7.37857817]
[1723208552906,43.35326012,155.25,155.15,35.79]
[1723208553116,1.61092055,155.24,155.15,35.79]
[1723208553288,6.4425,155.22,155.13,35.79]
[1723208553895,6.4429,155.21,155.13,35.79]
[1723208554287,6.4425,155.22,155.13,35.79]
[1723208554886,20.0,155.21,155.13,35.79]
[1723208555080,1.12196012,155.25,155.15,35.79]
[1723208555081,20.0,155.22,155.15,35.79]
[1723208555303,20.0,155.24,155.16,15.2299]
[1723208555481,35.79,155.27,155.17,35.79]
[1723208555881,265.64,155.28,155.18,6.4474]
[1723208556107,36.91176873,155.29,155.18,6.4474]
[1723208556108,6.4404,155.27,155.18,6.4474]
[1723208556405,6.4413,155.25,155.18,6.4474]
[1723208556792,6.4408,155.26,155.18,6.4474]
[1723208556989,35.79,155.27,155.18,6.4474]
[1723208556990,45.37647,155.25,155.18,6.4474]
[1723208557188,35.79,155.27,155.18,6.4474]
[1723208557421,36.91176873,155.29,155.19,35.79]
[1723208557582,20.0,155.28,155.19,35.79]
[1723208558308,20.0,155.28,155.2,45.0]
[1723208558507,35.79,155.31,155.21,37.07822794]
[1723208559006,35.79,155.31,155.22,15.3657]
[1723208559185,37.40019301,155.31,155.22,15.3657]
[1723208559717,20.0,155.3,155.22,15.3657]
[1723208559879,35.79,155.31,155.22,15.3657]
[1723208560199,294.99,155.35,155.26,6.0248]
[1723208560518,42.2262,155.37,155.27,35.79]
[1723208560983,6.4378,155.34,155.26,6.0248]
[1723208561302,37.39996732,155.33,155.26,6.0248]
[1723208561607,1.61009067,155.32,155.26,6.0248]
[1723208561810,21.61000639,155.32,155.26,6.0248]
[1723208562192,0.12549,155.31,155.26,6.0248]
[1723208562501,1.610111,155.3,155.26,6.0248]
[1723208562702,0.12549,155.29,155.22,15.3657]
[1723208563086,21.610111,155.3,155.22,15.3657]
[1723208563686,0.25098,155.29,155.22,15.3657]
[1723208564185,0.12549,155.28,155.22,15.3657]
[1723208564384,0.25098,155.28,155.22,15.3657]
[1723208564605,0.12549,155.27,155.22,15.3657]
[1723208564815,20.0,155.28,155.22,15.3657]
[1723208565108,21.61032797,155.28,155.22,15.3657]
[1723208565413,42.35589,155.27,155.22,15.3657]
[1723208565617,20.0,155.26,155.22,15.3657]
[1723208565792,36.04098,155.29,155.22,15.3657]
[1723208565985,20.0,155.28,155.22,15.3657]
[1723208566600,1.61051726,155.27,155.22,15.3657]
[1723208566807,20.0,155.28,155.22,15.3657]
[1723208567301,0.12549,155.29,155.22,15.3657]
[1723208567496,0.25098,155.29,155.22,15.3657]
[1723208568398,1.86126851,155.29,155.22,15.3657]
[1723208569417,0.25098,155.29,155.22,15.3657]
[1723208570228,36.04098,155.29,155.22,15.3657]
[1723208570397,65.0,155.28,155.22,15.3657]
[1723208570603,1.73602854,155.27,155.22,15.3657]
[1723208571004,6.4408,155.26,155.18,15.72]
[1723208571321,1.6106399,155.25,155.18,15.72]
[1723208572120,20.0,155.26,155.18,15.72]
[1723208572304,20.0,155.26,155.19,80.79]
[1723208572492,20.0,155.3,155.19,80.79]
[1723208572823,1.61034794,155.29,155.19,80.79]
[1723208573057,37.40034794,155.29,155.19,35.79]
[1723208573193,26.4403,155.28,155.19,35.79]
[1723208573393,35.79,155.27,155.18,15.72]
[1723208573594,20.0,155.26,155.18,15.72]
[1723208574530,20.12549,155.28,155.19,35.79]
[1723208574815,20.0,155.28,155.19,35.79]
[1723208574989,20.0,155.3,155.21,35.79]
[1723208575192,46.98681321,155.29,155.21,35.79]
[1723208575394,20.0,155.28,155.21,35.79]
[1723208575592,0.12549,155.27,155.21,35.79]
[1723208575816,20.0,155.28,155.19,35.79]
[1723208576017,0.12549,155.27,155.19,35.79]
[1723208577915,20.0,155.28,155.19,35.79]
[1723208578132,20.0,155.28,155.21,35.79]
[1723208578324,0.12549,155.29,155.21,35.79]
[1723208578519,0.25098,155.29,155.21,35.79]
[1723208579934,35.79,155.33,155.23,35.79]
[1723208580116,35.79,155.35,155.25,42.1993]
[1723208580314,6.4367,155.36,155.27,35.79]
[1723208580512,6.4386,155.32,155.25,6.4093]
[1723208580835,43.34823614,155.35,155.25,42.1993]
[1723208581016,1.60983457,155.34,155.25,42.1993]
[1723208581529,42.2271,155.35,155.25,42.1993]
[1723208581905,35.79,155.35,155.25,42.1993]
[1723208582638,35.79,155.39,155.29,35.79]
[1723208582820,42.2255,155.39,155.29,35.79]
[1723208583222,35.79,155.39,155.29,35.79]
[1723208583529,35.79,155.39,155.3,16.5375]
[1723208583721,27.88,155.38,155.31,27.88]
[1723208583923,7.55549216,155.4,155.33,27.88]
[1723208583924,29.00049216,155.4,155.33,27.88]
[1723208584127,27.88,155.41,155.34,29.1673617]
[1723208584337,27.88,155.41,155.34,27.88]
[1723208584539,27.88,155.39,155.32,6.5531]
[1723208584732,1.60935487,155.38,155.32,6.5531]
[1723208585131,29.48935487,155.38,155.32,6.5531]
[1723208585441,28.13098,155.39,155.32,6.5531]
[1723208585740,35.83,155.4,155.32,6.5531]
[1723208585924,21.60931822,155.39,155.32,6.5531]
[1723208586239,28.04471822,155.39,155.32,6.5531]
[1723208586623,20.0,155.39,155.32,6.5531]
[1723208587021,0.12549,155.38,155.32,6.5531]
[1723208587529,35.83,155.37,155.3,16.5375]
[1723208587724,66.98610012,155.36,155.3,16.5375]
[1723208588055,66.98610012,155.36,155.27,6.4811]
[1723208588056,35.83,155.35,155.27,6.4811]
[1723208588242,21.73525447,155.34,155.27,6.4811]
[1723208589315,81.08098,155.33,155.27,6.4811]
[1723208589527,1.73549611,155.32,155.26,15.5945]
[1723208589714,21.73549611,155.32,155.26,15.5945]
[1723208589916,20.12549,155.32,155.26,15.5945]
[1723208590119,20.0,155.32,155.27,1.28797473]
[1723208590325,20.0,155.34,155.26,51.4245]
[1723208590528,20.0,155.34,155.26,15.5945]
[1723208590750,82.81626594,155.33,155.26,15.5945]
[1723208591042,35.83,155.31,155.23,6.1195]
[1723208591239,0.12549,155.3,155.23,6.1195]
[1723208591949,20.0,155.32,155.23,6.1195]
[1723208592125,0.12549,155.31,155.23,6.1195]
[1723208592522,20.0,155.32,155.24,35.83]
[1723208592719,0.12549,155.31,155.24,35.83]
[1723208592945,26.56329,155.34,155.24,35.83]
[1723208593145,20.12549,155.34,155.24,35.83]
[1723208593748,45.0,155.33,155.24,35.83]
[1723208593956,0.12549,155.32,155.24,35.83]
[1723208594255,0.12549,155.34,155.25,1.28792711]
[1723208594432,35.83,155.37,155.26,35.83]
[1723208594750,0.25098,155.36,155.26,35.83]
[1723208595325,6.4375,155.34,155.24,35.83]
[1723208595530,1.86095567,155.33,155.24,35.83]
[1723208595835,1.60995217,155.32,155.24,35.83]
[1723208596031,1.60995217,155.32,155.23,6.1195]
[1723208596352,0.12549,155.31,155.23,6.1195]
[1723208596537,1.73564788,155.31,155.23,6.1195]
[1723208596741,89.00464788,155.31,155.23,6.1195]
[1723208596928,0.12549,155.3,155.23,6.1195]
[1723208597251,71.69008,155.3,155.23,6.1195]
[1723208597457,1.7358633,155.29,155.22,16.4955]
[1723208597963,0.12549,155.29,155.22,16.4955]
[1723208598255,20.0,155.3,155.22,52.3255]
[1723208598558,20.0,155.32,155.24,35.83]
[1723208598724,65.37647,155.32,155.24,35.83]
[1723208598929,65.37647,155.32,155.22,52.3255]
[1723208599348,66.98672398,155.32,155.22,52.3255]
[1723208599554,35.83,155.31,155.22,16.4955]
[1723208599750,65.37647,155.3,155.22,16.4955]
[1723208599935,65.25098,155.3,155.22,52.3255]
[1723208600825,1.61025364,155.29,155.22,16.4955]
[1723208601162,1.61025364,155.29,155.17,15.1988]
[1723208601163,35.83,155.27,155.17,15.1988]
[1723208601326,35.83,155.25,155.17,15.1988]
[1723208601530,46.61086956,155.26,155.1,9.28028499]
[1723208601531,35.83,155.23,155.13,35.83]
[1723208601730,66.86209716,155.22,155.15,35.83]
[1723208602032,20.12549,155.22,155.15,35.83]
[1723208602230,20.12549,155.22,155.12,35.83]
[1723208602231,16.44649,155.26,155.17,35.83]
[1723208602447,0.25098,155.25,155.17,35.83]
[1723208602631,0.12549,155.24,155.17,35.83]
[1723208602953,0.25098,155.24,155.17,35.83]
[1723208603149,0.12549,155.24,155.17,35.83]
[1723208603350,20.12549,155.24,155.17,35.83]
[1723208604152,20.12549,155.24,155.15,35.83]
[1723208605848,48.05549,155.24,155.17,27.93]
[1723208606244,28.05549,155.23,155.16,27.93]
[1723208606551,0.12549,155.23,155.17,27.93]
[1723208606756,27.93,155.26,155.19,27.93]
[1723208606961,20.0,155.25,155.19,27.93]
[1723208607334,27.93,155.28,155.21,27.93]
[1723208607545,22.7603,155.3,155.21,27.93]
[1723208607546,27.93,155.27,155.21,27.93]
[1723208607756,1.61047543,155.26,155.19,43.6716]
[1723208607941,27.93,155.25,155.19,15.7416]
[1723208609239,1.6106909,155.24,155.19,15.7416]
[1723208609563,1.6106909,155.24,155.17,27.93]
[1723208609564,29.5406909,155.24,155.17,27.93]
[1723208609733,29.5406909,155.24,155.16,27.93]
[1723208610458,27.93,155.22,155.15,44.2861]
[1723208610654,0.12549,155.23,155.16,27.93]
[1723208610655,28.05549,155.23,155.16,27.93]
[1723208610856,28.05549,155.23,155.15,16.3561]
[1723208610857,29.54092187,155.22,155.15,44.2861]
[1723208611257,27.93,155.21,155.15,16.3561]
[1723208611430,27.93,155.19,155.12,43.0019]
[1723208611858,20.0,155.18,155.12,43.0019]
[1723208612060,20.0,155.18,155.13,27.93]
[1723208612258,20.0,155.18,155.14,27.93]
[1723208612560,28.05549,155.2,155.14,27.93]
[1723208612561,20.0,155.19,155.14,27.93]
[1723208612943,20.0,155.19,155.13,27.93]
[1723208613156,47.93,155.19,155.13,27.93]
[1723208613959,47.93,155.19,155.11,6.3998]
[1723208613960,27.93,155.18,155.11,27.93]
[1723208614257,27.93,155.15,155.08,43.9101863]
[1723208614758,20.0,155.14,155.09,27.93]
[1723208614947,17.57771671,155.23,155.13,27.93]
[1723208615151,0.12549,155.21,155.13,27.93]
[1723208615336,20.0,155.19,155.13,27.93]
[1723208615541,47.93,155.19,155.13,27.93]
[1723208616159,20.0,155.19,155.13,27.93]
[1723208617748,47.93,155.19,155.13,27.93]
[1723208617947,20.0,155.19,155.13,27.93]
[1723208618651,20.0,155.19,155.16,27.93]
[1723208618835,27.93,155.23,155.16,27.93]
[1723208619037,65.37647,155.22,155.16,27.93]
[1723208619365,27.93,155.23,155.16,27.93]
[1723208619672,27.93,155.22,155.15,27.93]